bitfinex-derivatives/quotes_ETHF0:USTF0_20260209
["timestamp","ask_amount","ask_price","bid_price","bid_amount"]
[1770647249971,31.93670652,2026.2,2025.6,15.40841221]
[1770647250166,11.86397656,2026.7,2025.9,10.98506776]
[1770647250367,40.8,2026.6,2025.9,10.98506776]
[1770647250871,11.86397656,2026.7,2026.1,10.98506776]
[1770647251070,0.00639739,2026.7,2026.1,10.99030914]
[1770647251374,11.87037395,2026.7,2026.1,10.99030914]
[1770647252174,0.00639739,2026.7,2026.1,10.99030914]
[1770647252577,0.00639739,2026.7,2026.2,10.98506776]
[1770647253473,40.8,2027.3,2026.5,10.98506776]
[1770647253670,52.66397656,2027.3,2026.6,10.98506776]
[1770647253870,11.86397656,2027.1,2026.3,2.93982483]
[1770647254069,11.86397656,2027.1,2026.1,13.93013397]
[1770647254373,11.86892408,2027.1,2026.1,0.00524138]
[1770647254676,11.86397656,2026.9,2025.6,13.92489259]
[1770647255567,11.86397656,2026.9,2025.6,13.93074637]
[1770647255776,11.86397656,2026.9,2025.6,10.99092154]
[1770647256475,11.86397656,2026.7,2025.6,10.99092154]
[1770647257070,11.86397656,2026.7,2025.8,10.98506776]
[1770647258376,0.35906698,2026.0,2025.7,2.93982483]
[1770647258672,0.35906698,2026.0,2025.6,10.99092154]
[1770647259073,0.35906698,2026.0,2025.7,10.98506776]
[1770647259579,11.86397656,2027.0,2025.8,11.23205776]
[1770647259771,11.86397656,2026.8,2025.9,10.98506776]
[1770647259978,12.11084656,2026.8,2025.7,2.93982483]
[1770647260282,11.86397656,2026.8,2025.7,10.98506776]
[1770647260470,11.86397656,2026.8,2025.8,10.98506776]
[1770647260675,11.86397656,2026.8,2025.9,10.98506776]
[1770647262079,11.86397656,2026.8,2026.0,10.98506776]
[1770647262981,11.86397656,2026.8,2026.1,10.98506776]
[1770647263582,11.86397656,2026.8,2026.2,10.98506776]
[1770647263781,0.00494752,2027.1,2026.3,10.98506776]
[1770647263782,11.86397656,2027.0,2026.3,10.98506776]
[1770647264088,0.00494752,2027.1,2026.4,10.98506776]
[1770647264681,11.86397656,2027.6,2026.8,10.98506776]
[1770647264880,11.86397656,2027.6,2026.9,10.98506776]
[1770647265082,11.86397656,2027.6,2027.0,10.98506776]
[1770647265385,40.8,2028.0,2027.0,10.98506776]
[1770647265386,11.86397656,2028.0,2027.0,2.93982483]
[1770647265589,11.86844909,2028.0,2027.0,2.93982483]
[1770647265785,11.86844909,2028.0,2026.9,11.26339944]
[1770647267085,11.6451869,2027.8,2026.7,11.26339944]
[1770647269592,11.6451869,2027.8,2026.5,11.26339944]
[1770647269890,11.6451869,2027.6,2026.5,11.26339944]
[1770647270689,11.6451869,2027.5,2026.5,11.26339944]
[1770647272187,11.6451869,2027.5,2026.4,3.20752706]
[1770647272388,11.6451869,2027.5,2026.4,11.5388033]
[1770647272789,11.6451869,2027.5,2026.6,11.26339944]
[1770647272995,11.6451869,2027.5,2026.7,11.26339944]
[1770647275188,11.6451869,2027.5,2026.4,14.1000456]
[1770647275395,11.6451869,2027.5,2026.5,10.89251854]
[1770647275589,11.6451869,2027.3,2026.5,10.89251854]
[1770647277098,11.6451869,2027.3,2026.6,10.86533249]
[1770647277299,52.4451869,2027.4,2026.7,10.86533249]
[1770647277600,11.6451869,2027.8,2026.7,10.86533249]
[1770647277801,11.6451869,2027.7,2026.6,2.9321232]
[1770647277995,11.6451869,2027.5,2026.4,14.07285955]
[1770647278195,11.6451869,2027.3,2026.5,13.79745569]
[1770647278402,11.6451869,2027.3,2026.6,10.86533249]
[1770647279102,11.6451869,2027.3,2026.5,2.9321232]
[1770647279304,11.6451869,2027.3,2026.4,2.9321232]
[1770647279698,11.6451869,2027.3,2026.1,5.89383156]
[1770647279699,3.18183413,2027.2,2026.1,2.9321232]
[1770647279905,11.6451869,2026.9,2025.9,2.9321232]
[1770647280105,11.6451869,2026.8,2025.9,2.9321232]
[1770647280500,11.6451869,2026.8,2025.9,11.26339944]
[1770647281502,11.6451869,2026.8,2025.9,2.9321232]
[1770647281708,11.6451869,2026.8,2025.6,5.89968534]
[1770647281709,11.6451869,2026.8,2025.6,0.00585378]
[1770647282009,11.6451869,2026.8,2025.6,11.26925322]
[1770647282306,11.6451869,2026.8,2025.8,11.26339944]
[1770647282710,11.6451869,2026.8,2025.8,11.51037944]
[1770647282905,11.6451869,2026.8,2026.1,11.26339944]
[1770647283105,11.6451869,2027.1,2026.2,11.26339944]
[1770647285204,11.6451869,2027.1,2026.3,11.26339944]
[1770647285405,11.6451869,2027.8,2026.3,14.19552264]
[1770647285609,11.8919669,2027.6,2026.3,2.9321232]
[1770647285805,11.8919669,2027.6,2026.1,14.19552264]
[1770647286006,11.6451869,2027.4,2026.1,14.19552264]
[1770647286312,11.6451869,2027.4,2026.1,11.26339944]
[1770647286512,11.6451869,2027.2,2026.1,11.26339944]
[1770647286710,11.6451869,2026.9,2025.7,11.26339944]
[1770647286914,11.6451869,2026.7,2025.7,11.26339944]
[1770647287214,11.6451869,2026.7,2025.6,0.00585378]
[1770647287612,11.6451869,2026.7,2025.6,11.26925322]
[1770647288308,11.6451869,2027.1,2025.9,11.26339944]
[1770647288507,11.6451869,2027.1,2026.1,11.26339944]
[1770647289209,11.6451869,2027.1,2026.1,14.19552264]
[1770647289706,11.6451869,2027.1,2026.2,11.26339944]
[1770647290112,11.6451869,2027.1,2026.1,2.9321232]
[1770647290113,11.6451869,2026.9,2026.0,2.9321232]
[1770647290308,11.6451869,2026.9,2025.9,11.26339944]
[1770647290505,11.6451869,2026.9,2026.0,11.26339944]
[1770647290812,11.6451869,2026.9,2026.1,11.26339944]
[1770647292906,11.6451869,2027.1,2026.3,11.26339944]
[1770647293310,11.6451869,2027.1,2026.1,14.19552264]
[1770647293617,11.6451869,2027.1,2026.0,2.9321232]
[1770647293908,11.6451869,2027.1,2026.1,11.26339944]
[1770647294818,11.6451869,2027.1,2026.2,11.26339944]
[1770647295613,11.14327902,2026.8,2025.8,2.9321232]
[1770647295918,11.14327902,2026.6,2025.7,10.80564374]
[1770647296314,11.14327902,2026.4,2025.7,10.80564374]
[1770647296619,11.14839524,2026.4,2025.7,10.80564374]
[1770647297207,11.14839524,2026.4,2025.6,0.00585378]
[1770647298414,0.00511622,2026.4,2025.7,13.73776694]
[1770647298620,0.00511622,2026.4,2025.8,11.41239324]
[1770647299112,0.00511622,2026.4,2025.9,11.41239324]
[1770647299313,11.64817125,2026.4,2025.9,11.41239324]
[1770647299613,11.64817125,2026.4,2025.8,14.34451644]
[1770647299809,0.00511622,2026.4,2025.9,11.41239324]
[1770647300213,11.64817125,2026.4,2025.7,2.9321232]
[1770647300409,11.64817125,2026.4,2025.6,0.00585378]
[1770647300609,0.00511622,2026.4,2025.8,11.41239324]
[1770647301621,0.00511622,2026.4,2025.9,11.41239324]
[1770647303219,11.64817125,2026.4,2025.9,11.41239324]
[1770647303420,11.64817125,2026.4,2025.8,2.9321232]
[1770647303624,11.64817125,2026.4,2025.8,14.34451644]
[1770647304025,11.64817125,2026.4,2025.8,11.41239324]
[1770647304225,11.64817125,2026.4,2025.8,2.9321232]
[1770647304825,11.64817125,2026.4,2025.6,14.35037022]
[1770647305621,11.64817125,2026.4,2025.7,11.41239324]
[1770647306728,11.64817125,2026.4,2025.6,2.93797698]
[1770647306927,11.64817125,2026.4,2025.6,14.35037022]
[1770647307123,11.64817125,2026.4,2025.6,0.00585378]
[1770647307324,11.64817125,2026.4,2025.3,2.9321232]
[1770647307325,11.64305503,2026.2,2025.3,2.9321232]
[1770647307622,11.64305503,2026.2,2025.4,11.41239324]
[1770647308418,11.64305503,2026.2,2025.4,11.41825182]
[1770647308930,11.64817125,2026.4,2025.5,11.41239324]
[1770647309130,11.64817125,2026.4,2025.7,11.41239324]
[1770647309321,0.00511622,2026.4,2025.7,14.34451644]
[1770647309524,0.00511622,2026.4,2025.8,14.34451644]
[1770647309727,0.00511622,2026.4,2025.9,11.41239324]
[1770647309926,0.00511622,2026.4,2026.0,11.41239324]
[1770647310327,0.00511622,2026.4,2026.1,11.41239324]
[1770647312432,11.64817125,2026.4,2026.0,2.9321232]
[1770647312634,0.00511622,2026.4,2026.1,11.41239324]
[1770647313530,11.64305503,2026.8,2026.2,11.41239324]
[1770647313925,11.64305503,2026.8,2026.1,14.34451644]
[1770647314426,11.64844694,2026.8,2026.2,11.41239324]
[1770647314629,11.64844694,2026.8,2026.1,2.9321232]
[1770647314822,11.64844694,2026.8,2026.1,11.41239324]
[1770647316427,0.00539191,2026.8,2026.2,2.9321232]
[1770647316632,11.64844694,2026.8,2026.1,14.34451644]
[1770647316831,11.64844694,2026.8,2026.1,2.9321232]
[1770647317928,11.64844694,2026.8,2026.0,2.9321232]
[1770647318233,0.00539191,2026.8,2026.1,14.34451644]
[1770647318436,11.64305503,2027.2,2026.5,11.41239324]
[1770647318630,11.64305503,2027.4,2026.9,11.41239324]
[1770647319328,11.64305503,2027.3,2026.7,14.34451644]
[1770647319535,11.64923296,2027.3,2026.8,11.41239324]
[1770647320034,0.00617793,2027.3,2026.8,14.34451644]
[1770647320230,11.64923296,2027.3,2026.8,11.41239324]
[1770647320832,11.64305503,2027.7,2026.9,11.41239324]
[1770647321236,40.8,2027.6,2026.9,11.41239324]
[1770647321426,11.64305503,2027.5,2026.8,2.9321232]
[1770647321627,11.64305503,2027.5,2026.7,0.00522562]
[1770647321838,11.64716303,2027.5,2026.7,11.41761886]
[1770647323536,11.64716303,2027.5,2026.7,0.00522562]
[1770647323740,11.64716303,2027.5,2026.7,11.41761886]
[1770647324131,0.004108,2027.5,2026.8,11.41239324]
[1770647324340,11.64716303,2027.5,2026.8,11.41239324]
[1770647324642,11.64305503,2027.4,2026.8,11.41239324]
[1770647325338,11.64305503,2027.4,2026.7,11.21870989]
[1770647326539,11.64305503,2027.4,2026.7,0.00522562]
[1770647327129,11.10713229,2027.2,2026.7,0.00522562]
[1770647327338,11.10713229,2027.2,2026.4,11.21348427]
[1770647327741,11.10713229,2027.2,2026.2,11.21348427]
[1770647327935,3.18183413,2027.1,2026.1,11.21348427]
[1770647328134,11.10713229,2027.0,2026.1,11.21348427]
[1770647328440,11.10713229,2027.0,2026.1,11.21987515]
[1770647329943,31.91,2027.3,2026.4,11.21348427]
[1770647330135,11.10713229,2027.2,2026.4,11.21348427]
[1770647330436,11.10713229,2027.2,2026.2,11.21348427]
[1770647330835,11.35396229,2027.1,2026.1,0.00639088]
[1770647331343,11.35396229,2027.1,2026.1,11.21987515]
[1770647331543,11.10713229,2026.9,2026.1,11.21987515]
[1770647332738,11.10713229,2027.1,2026.3,11.21348427]
[1770647333237,43.01713229,2027.3,2026.5,11.21348427]
[1770647333441,31.91,2027.3,2026.5,11.21348427]
[1770647334141,11.10713229,2027.2,2026.3,11.21348427]
[1770647335542,11.10713229,2027.2,2026.4,11.21348427]
[1770647335742,11.10713229,2027.2,2026.3,11.21348427]
[1770647337044,31.91,2027.3,2026.4,11.21348427]
[1770647337746,51.91124029,2027.5,2026.5,11.21348427]
[1770647338136,51.91124029,2027.5,2026.5,14.14560747]
[1770647338341,51.91124029,2027.5,2026.6,11.21348427]
[1770647339438,51.91124029,2027.5,2026.6,14.14560747]
[1770647339639,51.91124029,2027.5,2026.7,11.21348427]
[1770647340243,11.10713229,2027.4,2026.7,11.21348427]
[1770647340439,40.804108,2027.5,2026.8,11.21348427]
[1770647340640,1e-08,2027.5,2027.0,14.14560747]
[1770647340846,1e-08,2027.5,2027.1,11.21348427]
[1770647341144,11.1071323,2027.5,2027.0,2.9321232]
[1770647341342,11.10713229,2027.3,2026.3,11.21348427]
[1770647341740,11.10713229,2027.1,2025.9,11.21348427]
[1770647342344,11.10713229,2026.5,2025.4,11.21348427]
[1770647342552,0.24689,2026.6,2025.4,11.21348427]
[1770647342553,11.10713229,2026.3,2025.4,11.21348427]
[1770647343453,11.10713229,2026.3,2025.4,11.21876307]
[1770647344053,11.10713229,2026.3,2025.4,0.0052788]
[1770647344945,11.10713229,2026.3,2025.4,11.21876307]
[1770647345749,11.10713229,2026.8,2025.8,11.21348427]
[1770647345946,11.10713229,2026.8,2025.6,11.21348427]
[1770647346146,11.10713229,2026.6,2025.6,11.21348427]
[1770647346347,11.10713229,2026.5,2025.6,11.21348427]
[1770647346548,51.90713229,2026.5,2025.6,11.21348427]
[1770647347353,40.8,2026.5,2025.6,11.21348427]
[1770647347747,40.8,2026.5,2025.8,11.21348427]
[1770647347951,31.913,2026.6,2025.8,11.21348427]
[1770647348351,40.8,2026.5,2025.8,11.21348427]
[1770647348850,31.913,2026.6,2025.8,11.21348427]
[1770647349159,72.713,2026.6,2025.8,11.21348427]
[1770647349559,11.10713229,2026.9,2025.8,11.21348427]
[1770647350049,51.90713229,2026.9,2026.0,11.21348427]
[1770647350645,11.1071323,2027.5,2026.2,11.21348427]
[1770647350845,11.35394229,2027.3,2026.2,11.21348427]
[1770647351053,11.10713229,2027.2,2026.0,11.21348427]
[1770647352757,11.10713229,2027.0,2025.6,11.21348427]
[1770647353557,11.10713229,2026.8,2025.6,11.21348427]
[1770647353758,11.10713229,2026.7,2025.6,11.21348427]
[1770647355661,40.8,2026.6,2025.8,11.00970045]
[1770647355965,11.28180801,2026.9,2026.0,0.16947131]
[1770647356362,43.55716194,2027.5,2026.5,0.41637131]
[1770647356363,52.08180801,2027.1,2026.5,0.41637131]
[1770647356666,11.28180801,2027.1,2026.6,0.16947131]
[1770647357054,52.08180801,2027.1,2026.6,0.16947131]
[1770647357257,11.41680366,2027.3,2026.6,0.16947131]
[1770647357653,52.21680366,2027.3,2026.6,0.16947131]
[1770647357858,11.40521414,2027.2,2026.6,0.16947131]
[1770647358062,11.40521414,2027.4,2026.6,0.16947131]
[1770647360563,1e-08,2027.5,2026.6,0.16947131]
[1770647360769,1e-08,2027.5,2026.8,0.47470247]
[1770647361365,1e-08,2027.5,2026.6,0.49689026]
[1770647362072,1e-08,2027.5,2026.3,0.44240488]
[1770647363869,10.97646533,2027.3,2025.9,0.94441248]
[1770647364472,10.97646533,2027.1,2025.9,0.94441248]
[1770647365673,40.8,2027.0,2026.1,0.88334505]
[1770647365874,10.97646533,2026.9,2026.1,0.82757428]
[1770647368974,10.97646533,2026.9,2025.8,0.31498508]
[1770647374278,10.97646533,2026.9,2025.8,4.4184433]
[1770647374679,10.97646533,2026.9,2025.9,4.6654233]
[1770647374879,10.97646533,2026.9,2026.0,4.4184433]
[1770647376174,10.97646533,2026.9,2026.1,4.4184433]
[1770647376376,10.97646533,2026.9,2026.0,4.4184433]
[1770647377178,10.97646533,2026.9,2026.1,4.4184433]
[1770647377681,10.97646533,2026.9,2026.2,4.4184433]
[1770647381784,10.97646533,2026.8,2025.6,4.4184433]
[1770647381977,10.97646533,2026.8,2025.5,4.4184433]
[1770647382379,10.97646533,2026.5,2025.4,0.0052788]
[1770647382579,10.97646533,2026.3,2025.4,0.0052788]
[1770647382881,10.97646533,2026.2,2025.4,0.0052788]
[1770647383882,10.97646533,2026.0,2025.0,4.4184433]
[1770647384381,10.97646533,2026.0,2024.8,4.69673173]
[1770647384682,10.97646533,2026.0,2024.7,4.4184433]
[1770647384988,10.97646533,2025.9,2024.7,0.00507861]
[1770647389189,10.97646533,2025.9,2024.9,0.398476]
[1770647391489,10.97646533,2025.9,2025.1,0.28185458]
[1770647391689,0.00433325,2026.0,2025.1,0.28185458]
[1770647392191,0.00433325,2026.0,2025.3,0.22809223]
[1770647392490,10.27732905,2026.3,2025.3,0.22809223]
[1770647392684,40.8,2026.2,2025.3,0.22809223]
[1770647392883,10.27732905,2026.3,2025.3,0.22809223]
[1770647393290,10.28116148,2026.3,2025.3,0.22809223]
[1770647393490,10.2658324,2026.2,2025.3,0.22809223]
[1770647394290,10.2658324,2026.2,2025.1,0.16779264]
[1770647394490,10.2658324,2026.2,2025.2,0.16779264]
[1770647394791,10.2658324,2026.2,2025.3,0.16779264]
[1770647394986,10.2658324,2026.2,2025.1,4.6655133]
[1770647394987,10.2658324,2026.2,2025.1,0.12665745]
[1770647395187,10.2658324,2026.2,2024.9,0.12665745]
[1770647396887,10.2658324,2026.1,2025.0,6.56494022]
[1770647397191,10.2658324,2026.0,2024.7,0.00507861]
[1770647397392,10.2658324,2025.8,2024.7,0.00507861]
[1770647397988,10.2658324,2025.8,2024.9,4.4184433]
[1770647398491,10.2658324,2026.1,2025.0,6.54306965]
[1770647398890,10.2658324,2026.1,2024.9,4.4184433]
[1770647399293,10.2658324,2026.1,2025.0,4.4184433]
[1770647400188,0.00383243,2026.3,2025.5,0.24702]
[1770647400400,10.35965763,2026.3,2025.3,4.4184433]
[1770647400692,10.3558252,2026.1,2025.0,4.4184433]
[1770647400892,10.3558252,2026.1,2024.8,4.4184433]
[1770647401283,10.35223032,2025.9,2024.7,2.94564713]
[1770647401489,10.35223032,2025.9,2024.7,0.00507861]
[1770647401890,10.34418629,2025.7,2024.7,0.00507861]
[1770647402286,10.34164698,2025.5,2024.5,0.28339261]
[1770647402487,3.18183413,2025.6,2023.9,5.90279816]
[1770647402488,10.2658324,2025.1,2023.9,2.94056852]
[1770647402686,10.2658324,2025.1,2023.1,2.94056852]
[1770647402687,10.2658324,2024.4,2023.1,2.94056852]
[1770647402895,10.2658324,2024.9,2023.3,6.33058]
[1770647403093,10.2658324,2024.9,2023.8,2.94056852]
[1770647403395,0.00387734,2024.9,2024.0,6.32862]
[1770647403606,10.2658324,2026.0,2024.9,0.2471]
[1770647403795,10.2658324,2026.0,2025.0,2.9371075]
[1770647404097,10.2658324,2026.4,2025.0,6.49490526]
[1770647404401,10.2658324,2026.4,2025.0,9.43201276]
[1770647404601,0.0040188,2026.4,2025.4,6.32422]
[1770647404804,10.2658324,2027.4,2025.9,3.1840775]
[1770647405101,10.2658324,2027.3,2025.8,2.9371075]
[1770647405295,10.2658324,2027.3,2025.9,2.9371075]
[1770647405496,12.18036876,2027.4,2025.4,0.0052762]
[1770647405497,10.2658324,2026.8,2025.4,0.0052762]
[1770647405691,10.26973568,2026.8,2025.4,0.0052762]
[1770647405999,10.2658324,2026.6,2025.4,0.0052762]
[1770647407096,10.2658324,2026.3,2025.0,2.9371075]
[1770647407396,10.2658324,2026.3,2024.8,1.28206293]
[1770647407898,10.2658324,2026.1,2024.8,1.28206293]
[1770647408096,10.2658324,2026.0,2024.8,0.00537773]
[1770647408397,10.2658324,2025.8,2024.2,2.9371075]
[1770647408602,10.2658324,2025.2,2023.8,2.9371075]
[1770647408896,10.2658324,2025.0,2023.4,3.69729573]
[1770647409089,10.2658324,2024.5,2022.9,0.76018823]
[1770647409292,10.2658324,2024.1,2022.5,0.76442961]
[1770647409692,10.2658324,2023.9,2022.5,0.76442961]
[1770647409892,10.2658324,2023.9,2022.6,0.71032027]
[1770647410092,10.2658324,2023.9,2022.8,0.71032027]
[1770647410294,10.2658324,2023.7,2022.3,0.71612891]
[1770647410491,10.2658324,2023.5,2022.0,3.65323641]
[1770647410691,6.08357,2023.3,2021.7,2.9371075]
[1770647410891,6.08357,2023.3,2021.4,0.65132235]
[1770647410892,10.2658324,2023.0,2021.4,0.65132235]
[1770647411390,10.2658324,2022.8,2021.4,0.65132235]
[1770647411591,0.00358495,2022.8,2021.8,0.22760462]
[1770647411995,0.00358495,2022.8,2021.9,6.3582705]
[1770647411996,10.26941735,2022.8,2021.9,6.3582705]
[1770647412197,10.26941735,2022.8,2021.7,0.17505554]
[1770647412394,10.26941735,2022.8,2021.4,0.17884123]
[1770647412900,10.26941735,2022.8,2021.6,0.11027585]
[1770647413196,10.26941735,2022.8,2021.7,6.34473065]
[1770647413402,10.2658324,2022.6,2021.7,5.34473065]
[1770647413599,10.2658324,2022.5,2020.7,5.39715929]
[1770647413794,10.2658324,2022.5,2020.9,6.33829]
[1770647413999,10.2658324,2022.5,2021.4,5.34897925]
[1770647414300,10.26941735,2022.8,2021.4,5.34897925]
[1770647414499,10.26941735,2022.8,2021.6,5.34897925]
[1770647414695,0.00358495,2022.8,2021.8,5.34897925]
[1770647414895,0.00358495,2022.8,2021.7,6.33585]
[1770647414896,10.2658324,2023.8,2022.5,5.78260403]
[1770647415090,10.2658324,2024.7,2022.9,5.78260403]
[1770647415295,10.2658324,2024.4,2023.3,5.7981285]
[1770647415495,9.47751661,2024.6,2023.3,5.7981285]
[1770647416000,9.47751661,2024.4,2023.3,5.80178477]
[1770647416201,9.47751661,2024.4,2023.3,0.00365627]
[1770647416701,9.47751661,2024.2,2022.3,5.99319319]
[1770647416896,9.47751661,2024.2,2022.6,5.94358541]
[1770647417196,0.00423432,2024.6,2023.4,5.94358541]
[1770647417589,9.48175093,2024.6,2023.4,5.94562845]
[1770647417995,9.48175093,2024.6,2023.6,5.89003765]
[1770647418196,9.48175093,2024.6,2023.4,0.00204304]
[1770647418497,9.47751661,2024.4,2022.5,9.8637737]
[1770647418702,9.47751661,2024.2,2022.5,9.8637737]
[1770647419092,9.47751661,2024.2,2022.5,6.36191277]
[1770647419394,40.8,2024.3,2022.2,6.08681]
[1770647419395,40.8,2024.3,2023.1,9.53809429]
[1770647419601,9.74931473,2024.5,2023.1,9.53809429]
[1770647419801,9.74931473,2024.5,2023.3,9.53809429]
[1770647420300,9.74931473,2024.5,2023.5,9.53809429]
[1770647420697,1e-08,2024.6,2023.7,9.53809429]
[1770647420891,9.74931473,2024.8,2023.7,9.53809429]
[1770647421094,9.74931473,2025.1,2023.8,6.49397668]
[1770647421399,9.74931473,2025.1,2023.3,9.53809429]
[1770647421798,9.75435984,2025.1,2023.5,9.53809429]
[1770647421998,9.74931473,2024.9,2023.5,9.53809429]
[1770647422393,9.74931473,2024.9,2023.7,9.53809429]
[1770647422903,9.74931473,2024.7,2023.4,6.41186625]
[1770647423105,9.74931473,2024.7,2023.3,0.00423432]
[1770647423301,9.74931473,2024.5,2023.3,0.00423432]
[1770647423599,6.32896,2023.9,2022.0,9.53809429]
[1770647423804,9.74931473,2023.7,2022.0,9.53809429]
[1770647424004,9.74931473,2023.3,2021.7,9.53809429]
[1770647424503,9.7547635,2023.3,2022.2,9.78552429]
[1770647424803,9.74931473,2023.9,2022.6,6.08565]
[1770647425103,9.74931473,2023.9,2022.7,9.53809429]
[1770647425401,9.74931473,2023.9,2023.0,0.2]
[1770647426099,6.32807,2024.2,2021.9,9.53809429]
[1770647426100,9.74931473,2023.7,2021.9,9.53809429]
[1770647426299,9.51116413,2023.8,2021.9,9.53809429]
[1770647426300,9.74931473,2023.5,2021.9,9.53809429]
[1770647426709,0.24726,2023.6,2021.6,9.53809429]
[1770647426710,9.74931473,2023.3,2021.6,9.53809429]
[1770647427005,9.75385732,2023.3,2021.6,9.54354307]
[1770647427199,9.74931473,2023.1,2021.6,9.54354307]
[1770647427404,9.74931473,2022.5,2021.6,0.00544878]
[1770647429112,6.33122,2023.2,2020.4,9.53809429]
[1770647429113,9.74931473,2022.3,2020.4,9.53809429]
[1770647429410,9.74931473,2022.1,2020.6,9.53809429]
[1770647429605,9.74931473,2022.1,2021.0,9.53809429]
[1770647430111,50.54931473,2022.4,2021.2,9.53809429]
[1770647430507,9.74931473,2022.3,2021.4,9.53809429]
[1770647430713,9.74931473,2022.3,2020.9,9.53809429]
[1770647430714,9.74931473,2022.2,2020.9,9.53809429]
[1770647431206,9.74931473,2022.2,2021.1,9.53809429]
[1770647431716,9.74931473,2022.2,2020.8,9.53809429]
[1770647431912,9.74931473,2022.0,2020.5,9.53809429]
[1770647432706,9.74931473,2022.0,2019.8,2.9371075]
[1770647432707,9.99684473,2021.4,2019.6,9.53809429]
[1770647432912,9.75469667,2021.4,2020.3,9.53809429]
[1770647434216,9.75469667,2021.4,2020.0,9.53809429]
[1770647434514,9.74931473,2021.2,2020.0,9.53809429]
[1770647434713,9.74931473,2021.2,2019.8,6.29167578]
[1770647434902,9.74931473,2021.2,2019.7,9.53809429]
[1770647435105,9.74931473,2021.0,2019.7,9.53809429]
[1770647435306,9.74931473,2021.0,2019.5,0.24775]
[1770647435706,9.74931473,2020.8,2019.5,9.78584429]
[1770647435911,9.74931473,2020.9,2019.8,9.53809429]
[1770647436414,9.74931473,2020.9,2019.5,9.53809429]
[1770647436712,9.74931473,2020.9,2019.7,9.53809429]
[1770647437405,0.00538194,2021.4,2020.4,0.24765]
[1770647437612,0.00538194,2021.4,2020.5,9.53809429]
[1770647437807,0.00538194,2021.4,2020.6,9.53809429]
[1770647438203,9.75469667,2021.4,2020.5,6.33643504]
[1770647438503,9.74931473,2021.2,2020.0,9.53809429]
[1770647439307,0.00538194,2021.4,2020.2,9.53809429]
[1770647439308,9.75469667,2021.4,2020.2,9.53809429]
[1770647439510,9.75469667,2021.4,2020.1,5.45213961]
[1770647439816,9.74931473,2021.2,2019.9,9.53809429]
[1770647440118,9.74931473,2021.0,2019.4,9.53809429]
[1770647440707,9.74931473,2021.0,2019.6,9.53809429]
[1770647441109,3.18183413,2020.9,2019.6,9.53809429]
[1770647441313,3.18183413,2020.9,2019.3,9.53809429]
[1770647441314,9.74931473,2020.8,2019.3,9.53809429]
[1770647441510,9.99692473,2020.7,2019.0,9.53809429]
[1770647441711,9.74931473,2020.7,2019.1,9.78590429]
[1770647441917,9.74931473,2020.7,2019.5,9.53809429]
[1770647442415,9.74931473,2020.6,2019.4,6.32890596]
[1770647442620,9.74931473,2020.6,2019.2,9.53809429]
[1770647442814,9.74931473,2020.6,2019.1,9.78590429]
[1770647443415,9.74931473,2020.6,2019.1,9.53809429]
[1770647443618,9.74931473,2020.4,2019.1,9.53809429]
[1770647443824,9.99696473,2020.4,2018.8,9.53809429]
[1770647444220,9.74931473,2019.7,2017.8,0.24796]
[1770647444420,9.74931473,2019.6,2017.8,9.78605429]
[1770647444719,9.74931473,2018.6,2017.0,9.78616429]
[1770647444916,9.74931473,2018.6,2017.3,9.53809429]
[1770647445113,9.74931473,2018.6,2017.5,9.53809429]
[1770647445313,8.70497457,2018.4,2017.5,9.54377471]
[1770647445512,8.70497457,2018.4,2017.5,0.00568042]
[1770647445718,8.70497457,2018.3,2016.8,9.13991758]
[1770647445923,8.70497457,2018.2,2016.5,9.13991758]
[1770647446424,9.28061413,2018.3,2016.1,9.13991758]
[1770647446425,8.70497457,2018.0,2016.1,9.13991758]
[1770647446621,8.71074282,2018.0,2016.1,9.13991758]
[1770647446822,8.71074282,2018.0,2016.9,9.13991758]
[1770647447018,8.71074282,2018.0,2016.8,0.24809]
[1770647447220,8.70497457,2017.8,2016.3,9.13991758]
[1770647447619,8.70497457,2017.8,2016.4,9.13991758]
[1770647447818,0.00576825,2018.0,2016.4,9.13991758]
[1770647447819,8.70497457,2017.6,2016.4,9.13991758]
[1770647448519,3.18183413,2017.5,2016.6,9.13991758]
[1770647448724,8.70497457,2017.7,2016.6,9.13991758]
[1770647449121,8.70497457,2017.5,2016.3,9.13991758]
[1770647449523,8.70497457,2017.5,2016.0,9.13991758]
[1770647449832,11.8868087,2017.4,2016.5,9.13991758]
[1770647450134,0.00576825,2018.0,2016.2,9.13991758]
[1770647450135,8.70497457,2017.3,2016.2,9.13991758]
[1770647450333,8.70497457,2017.2,2015.9,9.13991758]
[1770647450725,8.70497457,2017.2,2015.6,6.10671]
[1770647450726,40.8,2017.1,2016.1,9.13991758]
[1770647450922,8.70497457,2017.0,2016.1,9.13991758]
[1770647451324,49.50497457,2017.1,2016.3,9.13991758]
[1770647451526,8.70497457,2016.8,2015.5,9.13991758]
[1770647451732,8.70497457,2016.8,2015.7,9.13991758]
[1770647452525,8.70497457,2016.6,2015.7,9.13991758]
[1770647452826,40.8,2017.1,2015.9,9.13991758]
[1770647453027,8.70497457,2017.0,2015.9,9.13991758]
[1770647453224,11.8868087,2017.0,2015.9,9.13991758]
[1770647453421,49.50497457,2017.1,2016.1,9.13991758]
[1770647454025,8.70497457,2016.9,2015.8,9.13991758]
[1770647454228,40.8,2017.1,2015.8,9.13991758]
[1770647454421,8.70497457,2017.0,2016.1,9.13991758]
[1770647454626,8.70497457,2017.0,2016.0,6.31603133]
[1770647454826,8.70497457,2017.0,2015.9,6.31603133]
[1770647454827,8.70497457,2017.0,2015.9,9.13991758]
[1770647455027,8.70497457,2017.0,2016.0,9.13991758]
[1770647455721,40.8,2017.1,2016.0,9.38809758]
[1770647455929,8.70497457,2017.9,2016.7,9.13991758]
[1770647456123,8.70497457,2017.7,2016.1,0.24818]
[1770647456323,8.70497457,2017.9,2016.7,6.10342]
[1770647456530,8.71074282,2018.0,2017.0,9.13991758]
[1770647456828,49.51074282,2018.0,2017.0,9.13991758]
[1770647457329,8.70497457,2017.9,2017.0,9.13991758]
[1770647457524,8.70497457,2017.9,2016.7,9.13991758]
[1770647457925,8.70497457,2017.9,2016.1,9.13991758]
[1770647457926,8.70497457,2017.7,2016.1,9.13991758]
[1770647458127,8.70497457,2017.5,2016.1,9.13991758]
[1770647458523,8.70497457,2017.5,2016.2,6.37458119]
[1770647458726,8.70497457,2017.5,2016.3,9.13991758]
[1770647459522,40.80576825,2018.0,2016.4,6.44124711]
[1770647459721,8.70497457,2017.8,2016.5,9.13991758]
[1770647460431,8.70497457,2017.8,2016.7,9.13991758]
[1770647460626,8.70497457,2017.8,2016.3,9.13991758]
[1770647460822,8.70497457,2017.8,2016.4,9.13991758]
[1770647461027,0.248,2017.5,2015.7,9.13991758]
[1770647461224,0.24808,2016.9,2015.1,9.13991758]
[1770647461425,0.24808,2016.9,2014.6,9.13991758]
[1770647461426,8.70497457,2016.2,2014.6,9.13991758]
[1770647461635,8.70497457,2015.4,2013.9,9.13991758]
[1770647461930,8.70497457,2015.2,2013.5,6.36166]
[1770647462234,8.70497457,2016.1,2014.2,9.13991758]
[1770647462426,0.0042505,2016.2,2014.0,6.37987533]